[Event "Al Mahmud Memorial Probashi Chess-ch 202"]
[Site "Dhaka"]
[Date "2022.02.07"]
[Round "3.10"]
[White "Rahman, Syed Mahfuzur"]
[Black "Gias Uddin, Ahmed"]
[Result "0-1"]
[ECO "B09"]
[WhiteElo "2099"]
[BlackElo "1801"]
[Annotator "RC"]
[PlyCount "162"]
[EventDate "2022.02.06"]
[EventCountry "BAN"]
[SourceTitle "playchess.com"]
[Source "ChessBase"]
[SourceQuality "1"]
[TimeControl "5400+30"]

1. d4 {[%emt 0:00:11]} d6 {[%emt 0:00:29]} 2. e4 {[%emt 0:00:53]} Nf6 {[%emt 1:31:01]} 3. Nc3 {[%emt 0:00:16]} g6 {[%emt 0:00:00]} 4. f4 {[%emt 0:00:10]} Bg7 {[%emt 0:00:00]} 5. Nf3 {[%emt 0:00:04]} c6 {[%emt 0:00:00]} 6. Bd3 {[%emt 0:07:31]} e6 {[%emt 0:00:00]} 7. O-O {[%emt 0:06:39]} d5 {[%emt 0:00:00]} 8. e5 {[%emt 0:01:31]} Nfd7 {[%emt 0:00:00]} 9. Ne2 {[%emt 0:00:29]} c5 {[%emt 0:00:00]} 10. c3 {[%emt 0:04:10]} b6 {[%emt 0:00:00]} 11. Be3 {[%emt 0:10:24]} Bb7 {[%emt 0:00:00]} 12. Ng5 {[%emt 0:01:14]} Qe7 {[%emt 0:00:00]} 13. Re1 {[%emt 0:05:42]} h6 {[%emt 0:00:00]} 14. Nf3 {[%emt 0:00:51]} Nc6 {[%emt 0:00:00]} 15. Bf2 {[%emt 0:04:44]} Qd8 {[%emt 0:00:00]} 16. Rc1 {[%emt 0:11:26]} c4 {[%emt 0:00:00]} 17. Bc2 {[%emt 0:01:24]} Bf8 {[%emt 0:00:00]} 18. b3 {[%emt 0:01:36]} Na5 {[%emt 0:00:00]} 19. Ng3 {[%emt 0:02:00]} Be7 {[%emt 0:00:00]} 20. h4 {[%emt 0:02:51]} Qc7 {[%emt 0:00:00]} 21. h5 {[%emt 0:06:38]} Nf8 {[%emt 0:00:00]} 22. Nd2 {[%emt 0:05:17]} b5 {[%emt 0:00:00]} 23. bxc4 {[%emt 0:02:03]} bxc4 {[%emt 0:00:00]} 24. Qg4 {[%emt 0:03:04]} O-O-O {[%emt 0:00:00]} 25. hxg6 {[%emt 0:01:35]} fxg6 {[%emt 0:00:00]} 26. Bxg6 {[%emt 0:02:13]} Rg8 {[%emt 0:00:00]} 27. f5 {[%emt 0:00:01]} Bg5 {[%emt 0:00:00]} 28. Be3 {[%emt 0:00:42]} Nxg6 {[%emt 0:00:00]} 29. fxg6 {[%emt 0:00:21]} Rxg6 {[%emt 0:00:00]} 30. Bxg5 {[%emt 0:00:08]} hxg5 {[%emt 0:00:00]} 31. Nh5 {[%emt 0:00:31]} Rh8 {[%emt 0:00:00]} 32. Nf6 {[%emt 0:02:28]} Qe7 {[%emt 0:00:00]} 33. Nf3 {[%emt 0:00:36]} Kb8 {[%emt 0:00:00]} 34. Kf2 {[%emt 0:01:39]} Bc8 {[%emt 0:00:00]} 35. Rh1 {[%emt 0:02:44]} Rgh6 {[%emt 0:00:00]} 36. Rb1+ {[%emt 0:05:42]} Nb7 {[%emt 0:00:00]} 37. Rxh6 {[%emt 0:00:53]} Rxh6 {[%emt 0:00:00]} 38. Ng8 {[%emt 0:00:08]} Qh7 {[%emt 0:00:00]} 39. Rxb7+ {[%emt 0:00:52]} Kxb7 {[%emt 0:00:00]} 40. Nxh6 {[%emt 0:00:18]} Qxh6 {[%emt 0:00:00]} 41. Qxg5 {[%emt 0:00:14]} Qh7 {[%emt 0:00:00]} 42. Qc1 {[%emt 0:00:52]} Bd7 {[%emt 0:00:00]} 43. Qb2+ {[%emt 0:01:18]} Kc8 {[%emt 0:00:00]} 44. Qd2 {[%emt 0:04:59]} Be8 {[%emt 0:00:00]} 45. Kg3 {[%emt 0:00:22]} Bh5 {[%emt 0:00:00]} 46. Qg5 {[%emt 0:01:55]} Kd7 {[%emt 0:00:00]} 47. Qf6 {[%emt 0:01:42]} Qg8+ {[%emt 0:00:00]} 48. Ng5 {[%emt 0:00:21]} Bg6 {[%emt 0:00:00]} 49. Kf4 {[%emt 0:00:03]} Be8 {[%emt 0:00:00]} 50. g4 {[%emt 0:00:18]} Bg6 {[%emt 0:00:00]} 51. Nf3 {[%emt 0:00:37]} Bd3 {[%emt 0:00:00]} 52. Ng5 {[%emt 0:00:58]} Bg6 {[%emt 0:00:00]} 53. Kg3 {[%emt 0:00:32]} Be8 {[%emt 0:00:00]} 54. Kf3 {[%emt 0:00:41]} Bg6 {[%emt 0:00:00]} 55. Ke3 {[%emt 0:00:19]} Be8 {[%emt 0:00:00]} 56. Kd2 {[%emt 0:00:23]} Bg6 {[%emt 0:00:00]} 57. Kc1 {[%emt 0:00:26]} Be8 {[%emt 0:00:00]} 58. Kb2 {[%emt 0:00:26]} a6 {[%emt 0:00:00]} 59. Ka3 {[%emt 0:00:45]} a5 {[%emt 0:00:00]} 60. Ka4 {[%emt 0:00:42]} Kc7+ {[%emt 0:00:00]} 61. Ka3 {[%emt 0:00:31]} Kd7 {[%emt 0:00:00]} 62. Ka4 {[%emt 0:00:23]} Kc7+ {[%emt 0:00:00]} 63. Kxa5 {[%emt 0:00:35]} Bd7 {[%emt 0:00:00]} 64. Kb4 {[%emt 0:00:10]} Qb8+ {[%emt 0:00:00]} 65. Ka3 {[%emt 0:00:03]} Qa7+ {[%emt 0:00:00]} 66. Kb2 {[%emt 0:00:01]} Qb6+ {[%emt 0:00:00]} 67. Ka1 {[%emt 0:00:27]} Qa5 {[%emt 0:00:00]} 68. Qf3 {[%emt 0:00:10]} Qa3 {[%emt 0:00:00]} 69. Qe3 {[%emt 0:00:22]} Qf8 {[%emt 0:00:00]} 70. Qf3 {[%emt 0:01:07]} Qa3 {[%emt 0:00:00]} 71. Kb1 {[%emt 0:01:35]} Kb6 {[%emt 0:00:00]} 72. Nh3 {[%emt 0:00:35]} Ba4 {[%emt 0:00:03]} 73. Nf2 {[%emt 0:00:24]} Be8 {[%emt 0:01:23]} 74. Qe3 {[%emt 0:00:21]} Bg6+ {[%emt 0:00:18]} 75. Ka1 {[%emt 0:00:01]} Qf8 {[%emt 0:02:02]} 76. Qd2 {[%emt 0:00:47]} Qf3 {[%emt 0:00:28]} 77. Kb2 {[%emt 0:00:42]} Ka5 {[%emt 0:01:13]} 78. g5 {[%emt 0:00:38]} Qg2 {[%emt 0:01:00]} 79. Qf4 {[%emt 0:00:40]} Qf1 {[%emt 0:00:32]} 80. Ka3 {[%emt 0:00:23]} Qe1 {[%emt 0:00:46]} 81. Qf3 {[%emt 0:00:39]} Qc1# {[%emt 0:31:45]} 0-1

[Event "Al Mahmud Memorial Probashi Chess-ch 202"]
[Site "Dhaka"]
[Date "2022.02.10"]
[Round "6.4"]
[White "Sadnan Hasan, Dihan"]
[Black "Zia, Tahsin Tajwar"]
[Result "1/2-1/2"]
[ECO "A00"]
[WhiteElo "2152"]
[BlackElo "2283"]
[Annotator "ChessBase"]
[PlyCount "50"]
[EventDate "2022.02.06"]
[EventCountry "BAN"]
[SourceTitle "playchess.com"]
[Source "ChessBase"]
[SourceQuality "1"]
[TimeControl "5400+30"]

1. a3 {[%emt 0:00:09]} Nf6 {[%emt 0:01:37]} 2. Nf3 {[%emt 0:01:04]} d5 {[%emt 0:01:02]} 3. d4 {[%emt 0:00:07]} e6 {[%emt 0:02:33]} 4. e3 {[%emt 0:01:14]} Bd6 {[%emt 0:00:34]} 5. Nbd2 {[%emt 0:00:27]} b6 {[%emt 0:02:01]} 6. c4 {[%emt 0:04:29]} O-O {[%emt 0:01:50]} 7. Qc2 {[%emt 0:00:28]} Nbd7 {[%emt 0:03:39]} 8. Bd3 {[%emt 0:04:54]} Bb7 {[%emt 0:02:38]} 9. b3 {[%emt 0:06:01]} Qe7 {[%emt 0:04:45]} 10. Bb2 {[%emt 0:01:42]} Rfe8 {[%emt 0:04:20]} 11. O-O {[%emt 0:14:41]} e5 {[%emt 0:12:27]} 12. c5 {[%emt 0:00:55]} e4 {[%emt 0:17:07]} 13. cxd6 {[%emt 0:00:17]} cxd6 {[%emt 0:03:06]} 14. Be2 {[%emt 0:05:21]} Rac8 {[%emt 0:00:17]} 15. Qb1 {[%emt 0:00:12]} exf3 {[%emt 0:00:12]} 16. gxf3 {[%emt 0:00:09]} Nh5 {[%emt 0:03:04]} 17. Bd3 {[%emt 0:07:44]} g6 {[%emt 0:01:28]} 18. a4 {[%emt 0:04:40]} a6 {[%emt 0:08:07]} 19. Rc1 {[%emt 0:03:13]} Nf8 {[%emt 0:01:48]} 20. Kh1 {[%emt 0:05:46]} Ne6 {[%emt 0:07:21]} 21. Rg1 {[%emt 0:06:52]} Neg7 {[%emt 0:04:04]} 22. Qf1 {[%emt 0:00:34]} Ra8 {[%emt 0:00:55]} 23. Rc1 {[%emt 0:00:29]} Rec8 {[%emt 0:01:18]} 24. Ba3 {[%emt 0:00:47]} f5 {[%emt 0:07:06]} 25. Qg2 {[%emt 0:03:11]} Kf7 {[%emt 0:02:50]} 1/2-1/2

[Event "Al Mahmud Memorial Probashi Chess-ch 202"]
[Site "Dhaka"]
[Date "2022.02.12"]
[Round "8.2"]
[White "Anata, Choudhury"]
[Black "Zia, Tahsin Tajwar"]
[Result "1/2-1/2"]
[ECO "B13"]
[WhiteElo "2170"]
[BlackElo "2283"]
[Annotator "ChessBase"]
[PlyCount "79"]
[EventDate "2022.02.06"]
[EventCountry "BAN"]
[SourceTitle "playchess.com"]
[Source "ChessBase"]
[SourceQuality "1"]
[TimeControl "5400+30"]

1. e4 {[%emt 0:00:14]} c6 {[%emt 0:00:30]} 2. d4 {[%emt 0:00:55]} d5 {[%emt 0:00:06]} 3. exd5 {[%emt 0:00:16]} cxd5 {[%emt 0:00:09]} 4. Bd3 {[%emt 0:00:14]} Nc6 {[%emt 0:00:14]} 5. c3 {[%emt 0:00:10]} Nf6 {[%emt 0:00:47]} 6. h3 {[%emt 0:00:12]} g6 {[%emt 0:03:07]} 7. Nf3 {[%emt 0:00:10]} Bf5 {[%emt 0:00:46]} 8. Be2 {[%emt 0:00:20]} Bg7 {[%emt 0:00:38]} 9. O-O {[%emt 0:00:15]} Qc7 {[%emt 0:01:13]} 10. Be3 {[%emt 0:01:28]} h6 {[%emt 0:01:09]} 11. Nbd2 {[%emt 0:01:10]} g5 {[%emt 0:02:18]} 12. Nh2 {[%emt 0:00:42]} e6 {[%emt 0:05:10]} 13. Rc1 {[%emt 0:01:56]} Bf8 {[%emt 0:05:34]} 14. b4 {[%emt 0:27:11]} Bd6 {[%emt 0:05:17]} 15. Ng4 {[%emt 0:00:23]} Bxg4 {[%emt 0:09:26]} 16. hxg4 {[%emt 0:00:20]} Kf8 {[%emt 0:11:44]} 17. b5 {[%emt 0:06:22]} Ne7 {[%emt 0:00:28]} 18. c4 {[%emt 0:01:04]} Qb8 {[%emt 0:04:38]} 19. Re1 {[%emt 0:23:51]} Kg7 {[%emt 0:04:09]} 20. Bf3 {[%emt 0:01:33]} dxc4 {[%emt 0:05:17]} 21. Nxc4 {[%emt 0:00:28]} Ned5 {[%emt 0:00:45]} 22. Ne5 {[%emt 0:05:33]} Rc8 {[%emt 0:04:03]} 23. Bd2 {[%emt 0:03:13]} a6 {[%emt 0:02:27]} 24. bxa6 {[%emt 0:14:21]} Rxa6 {[%emt 0:00:42]} 25. Rxc8 {[%emt 0:02:16]} Qxc8 {[%emt 0:00:01]} 26. a4 {[%emt 0:00:08]} Rb6 {[%emt 0:02:57]} 27. Be2 {[%emt 0:02:55]} Nc3 {[%emt 0:06:24]} 28. Bxc3 {[%emt 0:00:08]} Qxc3 {[%emt 0:00:01]} 29. Bb5 {[%emt 0:00:24]} Bxe5 {[%emt 0:05:05]} 30. dxe5 {[%emt 0:00:26]} Nd5 {[%emt 0:00:07]} 31. Re2 {[%emt 0:01:31]} Qc7 {[%emt 0:05:08]} 32. Qe1 {[%emt 0:06:21]} Qc5 {[%emt 0:00:36]} 33. Re4 {[%emt 0:00:00]} Nc3 {[%emt 0:07:44]} 34. Rc4 {[%emt 0:00:00]} Qxc4 {[%emt 0:00:07]} 35. Bxc4 {[%emt 0:00:00]} Rb1 {[%emt 0:00:01]} 36. Qxb1 {[%emt 0:00:00]} Nxb1 {[%emt 0:00:02]} 37. a5 {[%emt 0:00:00]} Nd2 {[%emt 0:01:58]} 38. a6 {[%emt 0:00:00]} bxa6 {[%emt 0:00:06]} 39. Bxa6 {[%emt 0:00:00]} f6 {[%emt 0:03:57]} 40. exf6+ {[%emt 0:00:00]} 1/2-1/2

[Event "Al Mahmud Memorial Probashi Chess-ch 202"]
[Site "Dhaka"]
[Date "2022.02.12"]
[Round "8.3"]
[White "Ahmed, Sheikh Nasir"]
[Black "Abu Sufian, Shakil"]
[Result "1/2-1/2"]
[ECO "B18"]
[WhiteElo "2168"]
[BlackElo "2232"]
[Annotator "ChessBase"]
[PlyCount "96"]
[EventDate "2022.02.06"]
[EventCountry "BAN"]
[SourceTitle "playchess.com"]
[Source "ChessBase"]
[SourceQuality "1"]
[TimeControl "5400+30"]

1. e4 {[%emt 0:00:23]} c6 {[%emt 0:00:40]} 2. d4 {[%emt 0:00:12]} d5 {[%emt 0:00:02]} 3. Nc3 {[%emt 0:00:12]} dxe4 {[%emt 0:00:05]} 4. Nxe4 {[%emt 0:00:08]} Bf5 {[%emt 0:00:29]} 5. Qf3 {[%emt 0:00:20]} Bg6 {[%emt 0:10:26]} 6. c3 {[%emt 0:01:44]} Nd7 {[%emt 0:01:10]} 7. Nh3 {[%emt 0:10:20]} Ngf6 {[%emt 0:00:50]} 8. Nxf6+ {[%emt 0:00:58]} Nxf6 {[%emt 0:00:18]} 9. Nf4 {[%emt 0:00:29]} Be4 {[%emt 0:02:16]} 10. Qe3 {[%emt 0:06:04]} Bf5 {[%emt 0:02:32]} 11. Bd3 {[%emt 0:02:07]} Bxd3 {[%emt 0:00:12]} 12. Nxd3 {[%emt 0:00:13]} e6 {[%emt 0:00:11]} 13. Bd2 {[%emt 0:11:19]} Bd6 {[%emt 0:00:38]} 14. O-O-O {[%emt 0:00:48]} Nd5 {[%emt 0:04:56]} 15. Qe4 {[%emt 0:07:11]} b5 {[%emt 0:00:24]} 16. h4 {[%emt 0:07:32]} Qc7 {[%emt 0:01:45]} 17. h5 {[%emt 0:03:41]} h6 {[%emt 0:00:32]} 18. f4 {[%emt 0:01:52]} O-O-O {[%emt 0:03:21]} 19. g4 {[%emt 0:00:44]} a5 {[%emt 0:02:46]} 20. g5 {[%emt 0:03:17]} Rde8 {[%emt 0:06:14]} 21. Kb1 {[%emt 0:01:08]} a4 {[%emt 0:08:20]} 22. Rdf1 {[%emt 0:04:57]} Kb7 {[%emt 0:05:35]} 23. Rf3 {[%emt 0:06:57]} Qd7 {[%emt 0:11:05]} 24. Ne5 {[%emt 0:07:23]} Bxe5 {[%emt 0:09:29]} 25. fxe5 {[%emt 0:00:03]} hxg5 {[%emt 0:00:09]} 26. Bxg5 {[%emt 0:00:19]} Ref8 {[%emt 0:00:33]} 27. Qh4 {[%emt 0:04:04]} f6 {[%emt 0:04:40]} 28. exf6 {[%emt 0:00:28]} gxf6 {[%emt 0:00:06]} 29. Bc1 {[%emt 0:06:23]} Qh7+ {[%emt 0:01:43]} 30. Ka1 {[%emt 0:00:02]} Rhg8 {[%emt 0:00:23]} 31. Qe1 {[%emt 0:00:28]} Re8 {[%emt 0:01:25]} 32. h6 {[%emt 0:00:28]} e5 {[%emt 0:06:55]} 33. dxe5 {[%emt 0:00:53]} Rxe5 {[%emt 0:00:27]} 34. Qf1 {[%emt 0:00:57]} a3 {[%emt 0:04:08]} 35. bxa3 {[%emt 0:01:23]} Rge8 {[%emt 0:00:53]} 36. Qd3 {[%emt 0:01:43]} f5 {[%emt 0:01:59]} 37. Bd2 {[%emt 0:03:53]} Nb6 {[%emt 0:03:26]} 38. Rhf1 {[%emt 0:03:56]} Nc4 {[%emt 0:00:54]} 39. Bc1 {[%emt 0:00:37]} Re1 {[%emt 0:04:29]} 40. Rxe1 {[%emt 0:00:46]} Rxe1 {[%emt 0:00:01]} 41. Rf1 {[%emt 0:00:02]} Ne5 {[%emt 0:02:05]} 42. Qh3 {[%emt 0:00:28]} Re2 {[%emt 0:00:29]} 43. Qxf5 {[%emt 0:01:08]} Qg8 {[%emt 0:00:12]} 44. Bb2 {[%emt 0:00:35]} Qg2 {[%emt 0:00:29]} 45. Rb1 {[%emt 0:01:32]} Nc4 {[%emt 0:00:35]} 46. Qd7+ {[%emt 0:01:18]} Kb6 {[%emt 0:00:17]} 47. Qd8+ {[%emt 0:00:32]} Kb7 {[%emt 0:00:07]} 48. Qd7+ {[%emt 0:00:16]} Kb6 {[%emt 0:00:03]} 1/2-1/2

[Event "Al Mahmud Memorial Probashi Chess-ch 202"]
[Site "Dhaka"]
[Date "2022.02.12"]
[Round "8.4"]
[White "Nayem, Haque"]
[Black "Md., Sharif Hossain"]
[Result "1-0"]
[ECO "B51"]
[WhiteElo "2150"]
[BlackElo "2211"]
[Annotator "ChessBase"]
[PlyCount "108"]
[EventDate "2022.02.06"]
[EventCountry "BAN"]
[SourceTitle "playchess.com"]
[Source "ChessBase"]
[SourceQuality "1"]
[TimeControl "5400+30"]

1. e4 {[%emt 0:00:08]} c5 {[%emt 0:04:55]} 2. Nf3 {[%emt 0:00:10]} d6 {[%emt 0:00:02]} 3. Bb5+ {[%emt 0:00:38]} Nd7 {[%emt 0:00:05]} 4. c3 {[%emt 0:07:12]} a6 {[%emt 0:01:05]} 5. Bd3 {[%emt 0:00:02]} g6 {[%emt 0:02:54]} 6. Bc2 {[%emt 0:00:40]} Bg7 {[%emt 0:00:24]} 7. d4 {[%emt 0:00:03]} Ngf6 {[%emt 0:05:20]} 8. e5 {[%emt 0:01:06]} dxe5 {[%emt 0:05:38]} 9. dxe5 {[%emt 0:00:04]} Ng4 {[%emt 0:02:14]} 10. e6 {[%emt 0:00:02]} fxe6 {[%emt 0:05:26]} 11. Ng5 {[%emt 0:00:26]} Nde5 {[%emt 0:01:08]} 12. Qxd8+ {[%emt 0:05:13]} Kxd8 {[%emt 0:00:03]} 13. f4 {[%emt 0:02:18]} h6 {[%emt 0:01:38]} 14. Nh3 {[%emt 0:00:26]} Nc4 {[%emt 0:02:17]} 15. Bxg6 {[%emt 0:01:53]} Bd7 {[%emt 0:01:09]} 16. Bd3 {[%emt 0:04:25]} Nd6 {[%emt 0:02:32]} 17. Be2 {[%emt 0:05:42]} e5 {[%emt 0:02:51]} 18. fxe5 {[%emt 0:04:54]} Bxe5 {[%emt 0:01:48]} 19. Nf4 {[%emt 0:03:30]} Rg8 {[%emt 0:02:37]} 20. Bf3 {[%emt 0:16:16]} Bxf4 {[%emt 0:02:20]} 21. Bxf4 {[%emt 0:00:57]} e5 {[%emt 0:00:02]} 22. Bg3 {[%emt 0:21:18]} Ne3 {[%emt 0:06:38]} 23. Na3 {[%emt 0:01:12]} e4 {[%emt 0:05:44]} 24. Bxd6 {[%emt 0:01:06]} exf3 {[%emt 0:00:03]} 25. gxf3 {[%emt 0:01:23]} Rg2 {[%emt 0:05:43]} 26. Bxc5 {[%emt 0:02:06]} Kc7 {[%emt 0:00:18]} 27. Bxe3 {[%emt 0:01:40]} Re8 {[%emt 0:00:47]} 28. Nc4 {[%emt 0:03:55]} Bb5 {[%emt 0:02:42]} 29. O-O-O {[%emt 0:00:05]} Bxc4 {[%emt 0:01:03]} 30. Bxh6 {[%emt 0:05:50]} Bxa2 {[%emt 0:00:29]} 31. Rd2 {[%emt 0:00:31]} Ree2 {[%emt 0:00:49]} 32. Rxe2 {[%emt 0:02:16]} Rxe2 {[%emt 0:00:01]} 33. h4 {[%emt 0:00:58]} Bb3 {[%emt 0:01:49]} 34. h5 {[%emt 0:03:01]} Rc2+ {[%emt 0:00:54]} 35. Kb1 {[%emt 0:00:03]} Re2 {[%emt 0:01:28]} 36. Bf4+ {[%emt 0:00:41]} Kc6 {[%emt 0:01:05]} 37. h6 {[%emt 0:00:24]} Bc2+ {[%emt 0:00:42]} 38. Ka2 {[%emt 0:00:22]} Bh7 {[%emt 0:00:16]} 39. Rg1 {[%emt 0:00:32]} Re7 {[%emt 0:09:55]} 40. Rd1 {[%emt 0:06:24]} Rf7 {[%emt 0:00:57]} 41. Rd6+ {[%emt 0:00:20]} Kc5 {[%emt 0:01:00]} 42. Rd4 {[%emt 0:00:12]} Kb5 {[%emt 0:01:25]} 43. b3 {[%emt 0:00:45]} Kc5 {[%emt 0:07:23]} 44. Ka3 {[%emt 0:00:16]} a5 {[%emt 0:01:24]} 45. Bd6+ {[%emt 0:00:23]} Kc6 {[%emt 0:00:11]} 46. Bf4 {[%emt 0:00:06]} Kc5 {[%emt 0:00:10]} 47. Rc4+ {[%emt 0:00:55]} Kb5 {[%emt 0:02:03]} 48. Rc7 {[%emt 0:00:30]} Rxc7 {[%emt 0:00:46]} 49. Bxc7 {[%emt 0:00:03]} Bg8 {[%emt 0:04:54]} 50. c4+ {[%emt 0:00:15]} Ka6 {[%emt 0:03:25]} 51. Kb2 {[%emt 0:00:03]} b5 {[%emt 0:00:07]} 52. cxb5+ {[%emt 0:00:03]} Kxb5 {[%emt 0:00:04]} 53. Kc3 {[%emt 0:00:25]} a4 {[%emt 0:02:08]} 54. bxa4+ {[%emt 0:00:02]} Kxa4 {[%emt 0:00:00]} 1-0

[Event "Al Mahmud Memorial Probashi Chess-ch 202"]
[Site "Dhaka"]
[Date "2022.02.12"]
[Round "8.5"]
[White "Rahman, Syed Mahfuzur"]
[Black "Manon, Reja Neer"]
[Result "1/2-1/2"]
[ECO "B04"]
[WhiteElo "2099"]
[BlackElo "2209"]
[Annotator "ChessBase"]
[PlyCount "105"]
[EventDate "2022.02.06"]
[EventCountry "BAN"]
[SourceTitle "playchess.com"]
[Source "ChessBase"]
[SourceQuality "1"]
[TimeControl "5400+30"]

1. e4 {[%emt 0:00:04]} Nf6 {[%emt 0:06:37]} 2. e5 {[%emt 0:00:56]} Nd5 {[%emt 0:00:09]} 3. c4 {[%emt 0:00:42]} Nb6 {[%emt 0:00:21]} 4. d4 {[%emt 0:00:16]} d6 {[%emt 0:00:08]} 5. Nf3 {[%emt 0:02:30]} g6 {[%emt 0:01:10]} 6. Be2 {[%emt 0:03:03]} Bg7 {[%emt 0:00:30]} 7. O-O {[%emt 0:02:07]} O-O {[%emt 0:02:01]} 8. Nc3 {[%emt 0:01:28]} Bg4 {[%emt 0:07:35]} 9. exd6 {[%emt 0:05:43]} cxd6 {[%emt 0:00:41]} 10. Be3 {[%emt 0:05:04]} Nc6 {[%emt 0:02:46]} 11. b3 {[%emt 0:01:21]} Rc8 {[%emt 0:06:57]} 12. h3 {[%emt 0:13:13]} Bxf3 {[%emt 0:02:46]} 13. Bxf3 {[%emt 0:03:59]} Nd7 {[%emt 0:01:24]} 14. Qd2 {[%emt 0:06:02]} Qa5 {[%emt 0:02:26]} 15. Rad1 {[%emt 0:01:44]} a6 {[%emt 0:02:35]} 16. Rfe1 {[%emt 0:04:22]} Rfe8 {[%emt 0:01:54]} 17. a3 {[%emt 0:15:02]} e5 {[%emt 0:15:59]} 18. b4 {[%emt 0:03:51]} Qc7 {[%emt 0:07:31]} 19. Nd5 {[%emt 0:15:01]} Qb8 {[%emt 0:01:53]} 20. b5 {[%emt 0:00:11]} axb5 {[%emt 0:12:01]} 21. cxb5 {[%emt 0:00:07]} Nd8 {[%emt 0:00:23]} 22. Qb4 {[%emt 0:03:49]} Bf8 {[%emt 0:02:39]} 23. a4 {[%emt 0:01:20]} Ne6 {[%emt 0:01:23]} 24. a5 {[%emt 0:01:38]} f5 {[%emt 0:01:13]} 25. g3 {[%emt 0:02:25]} Kh8 {[%emt 0:01:47]} 26. b6 {[%emt 0:07:32]} Bg7 {[%emt 0:01:34]} 27. Qb5 {[%emt 0:00:00]} Ndf8 {[%emt 0:02:42]} 28. dxe5 {[%emt 0:00:00]} dxe5 {[%emt 0:00:02]} 29. Nb4 {[%emt 0:00:00]} f4 {[%emt 0:01:05]} 30. gxf4 {[%emt 0:00:19]} exf4 {[%emt 0:00:02]} 31. Bc1 {[%emt 0:00:50]} Rc5 {[%emt 0:01:47]} 32. Qe2 {[%emt 0:00:10]} Re5 {[%emt 0:01:48]} 33. Qd3 {[%emt 0:00:56]} Nc5 {[%emt 0:13:11]} 34. Qf1 {[%emt 0:00:45]} Nfd7 {[%emt 0:00:00]} 35. Kh2 {[%emt 0:00:19]} Rxe1 {[%emt 0:00:00]} 36. Rxe1 {[%emt 0:00:01]} Ne5 {[%emt 0:00:00]} 37. Bd5 {[%emt 0:00:36]} g5 {[%emt 0:00:00]} 38. f3 {[%emt 0:00:30]} Qd6 {[%emt 0:00:00]} 39. Rd1 {[%emt 0:00:29]} Qh6 {[%emt 0:00:00]} 40. Kg2 {[%emt 0:00:31]} Qg6 {[%emt 0:00:00]} 41. Kh2 {[%emt 0:01:17]} h5 {[%emt 0:00:00]} 42. Qf2 {[%emt 0:00:38]} g4 {[%emt 0:00:02]} 43. hxg4 {[%emt 0:00:28]} hxg4 {[%emt 0:00:04]} 44. Qh4+ {[%emt 0:00:10]} Qh6 {[%emt 0:01:14]} 45. Qxh6+ {[%emt 0:00:12]} Bxh6 {[%emt 0:00:01]} 46. Bb2 {[%emt 0:00:30]} gxf3 {[%emt 0:00:54]} 47. Bxf3 {[%emt 0:00:22]} Bg7 {[%emt 0:00:02]} 48. Bxe5 {[%emt 0:00:36]} Rxe5 {[%emt 0:00:20]} 49. Rd5 {[%emt 0:01:16]} Rxd5 {[%emt 0:00:40]} 50. Bxd5 {[%emt 0:00:01]} Bc3 {[%emt 0:00:15]} 51. Bxb7 {[%emt 0:00:52]} Bxb4 {[%emt 0:00:41]} 52. a6 {[%emt 0:00:00]} Na4 {[%emt 0:00:15]} 53. Kh3 {[%emt 0:01:42]} 1/2-1/2

[Event "Al Mahmud Memorial Probashi Chess-ch 202"]
[Site "Dhaka"]
[Date "2022.02.12"]
[Round "8.7"]
[White "Mohammad Minhaz Uddin"]
[Black "Sakline Mostafa, Sajid"]
[Result "1/2-1/2"]
[ECO "B45"]
[WhiteElo "2267"]
[BlackElo "2089"]
[Annotator "ChessBase"]
[PlyCount "85"]
[EventDate "2022.02.06"]
[EventCountry "BAN"]
[SourceTitle "playchess.com"]
[Source "ChessBase"]
[SourceQuality "1"]
[TimeControl "5400+30"]

1. e4 {[%emt 0:04:46]} c5 {[%emt 0:00:00]} 2. Nf3 {[%emt 0:00:06]} e6 {[%emt 0:00:09]} 3. d4 {[%emt 0:00:16]} cxd4 {[%emt 0:00:01]} 4. Nxd4 {[%emt 0:00:02]} Nc6 {[%emt 0:00:19]} 5. Nc3 {[%emt 0:00:54]} Nf6 {[%emt 0:00:02]} 6. Ndb5 {[%emt 0:00:27]} Bb4 {[%emt 0:02:06]} 7. a3 {[%emt 0:00:21]} Bxc3+ {[%emt 0:00:07]} 8. Nxc3 {[%emt 0:00:03]} d5 {[%emt 0:00:01]} 9. exd5 {[%emt 0:00:14]} exd5 {[%emt 0:00:03]} 10. Bd3 {[%emt 0:02:44]} O-O {[%emt 0:00:12]} 11. O-O {[%emt 0:00:04]} d4 {[%emt 0:00:06]} 12. Ne2 {[%emt 0:00:38]} Bg4 {[%emt 0:00:08]} 13. Bg5 {[%emt 0:08:29]} Re8 {[%emt 0:04:09]} 14. Re1 {[%emt 0:02:26]} Qd6 {[%emt 0:00:44]} 15. Qd2 {[%emt 0:05:51]} Bxe2 {[%emt 0:01:00]} 16. Rxe2 {[%emt 0:01:34]} Rxe2 {[%emt 0:03:04]} 17. Qxe2 {[%emt 0:00:04]} Re8 {[%emt 0:04:02]} 18. Qf3 {[%emt 0:00:14]} Ne5 {[%emt 0:06:27]} 19. Qf4 {[%emt 0:14:48]} Qb6 {[%emt 0:17:33]} 20. Bxf6 {[%emt 0:01:28]} Qxf6 {[%emt 0:00:24]} 21. Qxf6 {[%emt 0:21:22]} gxf6 {[%emt 0:00:05]} 22. Bf5 {[%emt 0:00:18]} Rd8 {[%emt 0:16:59]} 23. b3 {[%emt 0:02:07]} Rd6 {[%emt 0:13:51]} 24. f4 {[%emt 0:07:30]} Ng6 {[%emt 0:03:20]} 25. g3 {[%emt 0:00:02]} Ne7 {[%emt 0:00:46]} 26. Be4 {[%emt 0:00:01]} Nd5 {[%emt 0:03:36]} 27. Kf2 {[%emt 0:07:54]} Ne3 {[%emt 0:04:54]} 28. Ke2 {[%emt 0:04:23]} f5 {[%emt 0:01:22]} 29. Bd3 {[%emt 0:02:09]} Re6 {[%emt 0:02:40]} 30. Kd2 {[%emt 0:01:19]} Kg7 {[%emt 0:03:48]} 31. Re1 {[%emt 0:03:14]} Kf6 {[%emt 0:03:02]} 32. h3 {[%emt 0:06:21]} h5 {[%emt 0:04:51]} 33. h4 {[%emt 0:00:22]} Ng4 {[%emt 0:01:16]} 34. Bc4 {[%emt 0:02:27]} Rd6 {[%emt 0:03:48]} 35. Re2 {[%emt 0:01:33]} Ne3 {[%emt 0:00:53]} 36. Kd3 {[%emt 0:00:33]} a6 {[%emt 0:00:43]} 37. a4 {[%emt 0:00:03]} Nf1 {[%emt 0:01:11]} 38. Rg2 {[%emt 0:00:36]} Ne3 {[%emt 0:00:17]} 39. Re2 {[%emt 0:00:46]} Nf1 {[%emt 0:00:12]} 40. Rg2 {[%emt 0:01:06]} Ne3 {[%emt 0:00:07]} 41. Rf2 {[%emt 0:00:27]} Nd1 {[%emt 0:01:52]} 42. Re2 {[%emt 0:00:01]} Ne3 {[%emt 0:00:34]} 43. Rf2 {[%emt 0:01:13]} 1/2-1/2